fUST/lending_fUST_20251004
["ID","MTS","AMOUNT","RATE_DAILY","PERIOD"]
[389086795,1759576240810,-1000.0,0.00020492,2]
[389086797,1759576240819,-1000.0,0.00020492,2]
[389086799,1759576240828,-438.05561126,0.00020492,2]
[389086801,1759576240837,-1000.0,0.00020492,2]
[389086803,1759576240846,-1000.0,0.00020492,2]
[389086804,1759576240855,-1000.0,0.00020492,2]
[389086806,1759576240864,-837.89,0.00020558,2]
[389086808,1759576240874,-534.68,0.00020585,2]
[389086811,1759576240892,-500.0,0.00020585,2]
[389086813,1759576240902,-1360.56,0.00020585,2]
[389086815,1759576240910,-1269.82,0.00020585,2]
[389086816,1759576240920,-746.58,0.00020585,2]
[389086817,1759576240928,-500.0,0.00020585,2]
[389086818,1759576240937,-500.0,0.00020585,2]
[389086819,1759576240946,-5566.94,0.00020585,2]
[389086820,1759576240955,-4367.38,0.00020585,2]
[389086821,1759576240964,-1574.36,0.00020585,2]
[389086822,1759576240973,-500.0,0.00020585,2]
[389086823,1759576240981,-590.18,0.00020585,2]
[389086824,1759576240990,-500.0,0.00020585,2]
[389086825,1759576240999,-500.0,0.00020585,2]
[389086826,1759576241009,-500.0,0.00020585,2]
[389086827,1759576241018,-4066.92253043,0.00020658,2]
[389086828,1759576241027,-500.0,0.00020662,2]
[389086829,1759576241037,-500.0,0.00020662,2]
[389086830,1759576241046,-584.18,0.00020662,2]
[389086831,1759576241056,-1838.1,0.00020662,2]
[389086832,1759576241065,-585.03,0.00020662,2]
[389086833,1759576241074,-955.37,0.00020662,2]
[389086834,1759576241083,-500.0,0.00020662,2]
[389086835,1759576241092,-500.0,0.00020662,2]
[389086836,1759576241101,-2288.71,0.00020662,2]
[389086837,1759576241111,-1781.48,0.00020662,2]
[389086838,1759576241120,-1130.4,0.00020662,2]
[389086839,1759576241128,-1467.11,0.00020662,2]
[389086840,1759576241145,-1260.12,0.00020662,2]
[389086841,1759576241154,-500.0,0.00020662,2]
[389086842,1759576241163,-545.08,0.00020662,2]
[389086843,1759576241172,-1436.03,0.00020662,2]
[389086844,1759576241181,-500.0,0.00020662,2]
[389086845,1759576241190,-500.0,0.00020662,2]
[389086846,1759576241199,-3224.55,0.00020662,2]
[389086847,1759576241207,-500.0,0.00020662,2]
[389086848,1759576241217,-646.0,0.00020662,2]
[389086849,1759576241225,-1025.35,0.00020662,2]
[389086850,1759576241234,-500.0,0.00020662,2]
[389086851,1759576241243,-1766.34,0.00020662,2]
[389086853,1759576241252,-1473.85,0.00020662,2]
[389086855,1759576241262,-1767.5,0.00020662,2]
[389086856,1759576241271,-2991.97,0.00020662,2]
[389086859,1759576241280,-500.0,0.00020662,2]
[389086860,1759576241289,-1063.98,0.00020662,2]
[389086862,1759576241298,-500.0,0.00020662,2]
[389086864,1759576241307,-2963.17,0.00020662,2]
[389086866,1759576241316,-634.81,0.00020662,2]
[389086868,1759576241328,-500.0,0.00020662,2]
[389086870,1759576241337,-1001.13,0.00020662,2]
[389086872,1759576241346,-500.0,0.00020663,2]
[389086874,1759576241355,-500.0,0.00020673,2]
[389086876,1759576241366,-500.0,0.00020673,2]
[389086878,1759576241375,-500.0,0.00020673,2]
[389086880,1759576241384,-500.0,0.00020673,2]
[389086882,1759576241393,-501.47766934,0.00020673,2]
[389086884,1759576241402,-500.0,0.00020673,2]
[389086886,1759576241411,-500.0,0.00020673,2]
[389086888,1759576241421,-500.0,0.00020673,2]
[389086890,1759576241430,-500.0,0.00020673,2]
[389086892,1759576241440,-500.0,0.00020673,2]
[389086894,1759576241449,-500.0,0.00020673,2]
[389086896,1759576241458,-500.0,0.00020673,2]
[389086898,1759576241467,-500.0,0.00020673,2]
[389086900,1759576241476,-500.0,0.00020673,2]
[389086902,1759576241485,-500.0,0.00020673,2]
[389086904,1759576241494,-587.13946892,0.00020673,2]
[389086906,1759576241503,-500.0,0.00020673,2]
[389086908,1759576241511,-278.96,0.00020689,3]
[389086910,1759576241520,-836.88,0.00020689,3]
[389086912,1759576241529,-500.0,0.00020699,2]
[389086914,1759576241538,-500.0,0.00020699,2]
[389086916,1759576241547,-500.0,0.00020699,2]
[389086918,1759576241556,-507.8395514,0.00020699,2]
[389086920,1759576241565,-500.0,0.00020699,2]
[389086922,1759576241574,-500.0,0.00020699,2]
[389086924,1759576241583,-500.0,0.00020699,2]
[389086926,1759576241592,-500.0,0.00020699,2]
[389086928,1759576241601,-579.7,0.00020699,2]
[389086930,1759576241610,-500.0,0.00020699,2]
[389086932,1759576241619,-500.0,0.00020699,2]
[389086934,1759576241627,-500.0,0.00020699,2]
[389086936,1759576241636,-201.97857689,0.00020699,2]
[389086938,1759576241645,-785.77,0.00020699,2]
[389086940,1759576241654,-500.0,0.00020699,2]
[389086942,1759576241667,-500.0,0.00020699,2]
[389086944,1759576241676,-467.88326351,0.00020699,2]
[389086946,1759576241685,-467.31736296,0.00020699,2]
[389086948,1759576241694,-500.0,0.00020699,2]
[389086950,1759576241704,-500.0,0.00020699,2]
[389086952,1759576241713,-500.0,0.00020699,2]
[389086954,1759576241722,-500.0,0.00020699,2]
[389086956,1759576241731,-500.0,0.00020699,2]
[389086957,1759576241742,-500.0,0.00020699,2]
[389086959,1759576241751,-500.0,0.00020699,2]
[389086961,1759576241761,-516.4,0.00020699,2]
[389086963,1759576241770,-500.0,0.00020699,2]
[389086965,1759576241779,-1664.42,0.00020699,2]
[389086967,1759576241788,-500.0,0.00020699,2]
[389086969,1759576241797,-1012.52,0.00020699,2]
[389086971,1759576241806,-500.0,0.00020699,2]
[389086973,1759576241815,-619.66,0.00020699,2]
[389086975,1759576241825,-528.44,0.00020699,2]
[389086977,1759576241834,-500.0,0.00020699,2]
[389086979,1759576241843,-600.62,0.00020699,2]
[389086981,1759576241852,-845.28,0.00020699,2]
[389086983,1759576241861,-500.0,0.00020699,2]
[389086985,1759576241870,-500.0,0.00020699,2]
[389086987,1759576241879,-733.85,0.00020699,2]
[389086989,1759576241887,-500.0,0.00020699,2]
[389086991,1759576241896,-500.0,0.00020699,2]
[389086993,1759576241905,-500.0,0.00020699,2]
[389086995,1759576241914,-582.6,0.00020699,2]
[389086997,1759576241923,-500.0,0.00020699,2]
[389086999,1759576241931,-500.0,0.00020699,2]
[389087001,1759576241940,-500.0,0.00020699,2]
[389087003,1759576241950,-500.0,0.00020699,2]
[389087005,1759576241958,-610.32,0.00020699,2]
[389087007,1759576241967,-500.0,0.00020699,2]
[389087009,1759576241976,-500.0,0.00020699,2]
[389087011,1759576241985,-500.0,0.00020699,2]
[389087013,1759576241994,-500.0,0.00020699,2]
[389087015,1759576242003,-500.0,0.00020699,2]
[389087016,1759576242013,-500.0,0.00020699,2]
[389087019,1759576242022,-500.0,0.00020699,2]
[389087020,1759576242031,-500.0,0.00020699,2]
[389087022,1759576242039,-500.0,0.00020699,2]
[389087024,1759576242049,-860.26,0.00020699,2]
[389087026,1759576242058,-500.0,0.00020699,2]
[389087028,1759576242068,-500.0,0.00020699,2]
[389087031,1759576242077,-500.0,0.00020699,2]
[389087032,1759576242086,-500.0,0.00020699,2]
[389087034,1759576242096,-500.0,0.00020699,2]
[389087036,1759576242105,-500.0,0.00020699,2]
[389087038,1759576242114,-500.0,0.00020699,2]
[389087040,1759576242124,-500.0,0.00020699,2]
[389087042,1759576242133,-500.0,0.00020699,2]
[389087044,1759576242142,-500.0,0.00020699,2]
[389087046,1759576242151,-500.0,0.00020699,2]
[389087048,1759576242160,-870.02,0.00020699,2]
[389087050,1759576242169,-500.0,0.00020699,2]
[389087052,1759576242178,-500.0,0.00020699,2]
[389087054,1759576242188,-1484.98,0.00020699,2]
[389087056,1759576242197,-414.19280358,0.00020699,2]
[389087058,1759576242206,-475.9178438,0.00020699,2]
[389087060,1759576242215,-698.5,0.00020699,2]
[389087062,1759576242225,-500.0,0.00020699,2]
[389087064,1759576242234,-1139.34,0.00020699,2]
[389087066,1759576242243,-500.0,0.00020699,2]
[389087068,1759576242251,-500.0,0.00020699,2]
[389087070,1759576242260,-343.42999065,0.00020699,2]
[389087072,1759576242269,-500.0,0.00020699,2]
[389087074,1759576242278,-1431.64,0.00020699,2]
[389087076,1759576242288,-500.0,0.00020699,2]
[389087078,1759576242297,-1930.18,0.00020699,2]
[389087080,1759576242306,-500.0,0.00020699,2]
[389087082,1759576242315,-480.36958762,0.00020699,2]
[389087084,1759576242326,-500.0,0.00020699,2]
[389087086,1759576242335,-500.0,0.00020699,2]
[389087088,1759576242344,-769.71,0.00020699,2]
[389087090,1759576242353,-500.0,0.00020699,2]
[389087092,1759576242362,-500.0,0.00020699,2]
[389087094,1759576242371,-500.0,0.00020699,2]
[389087096,1759576242380,-500.0,0.00020699,2]
[389087098,1759576242391,-500.0,0.00020699,2]
[389087100,1759576242400,-500.0,0.00020699,2]
[389087102,1759576242409,-500.0,0.00020699,2]
[389087104,1759576242418,-500.0,0.00020699,2]
[389087106,1759576242427,-500.0,0.00020699,2]
[389087108,1759576242436,-500.0,0.00020699,2]
[389087110,1759576242445,-500.0,0.00020699,2]
[389087112,1759576242454,-500.0,0.00020699,2]
[389087114,1759576242463,-1068.81,0.00020699,2]
[389087116,1759576242472,-500.0,0.00020699,2]
[389087118,1759576242481,-500.0,0.00020699,2]
[389087120,1759576242490,-500.0,0.00020699,2]
[389087122,1759576242498,-468.81489536,0.00020699,2]
[389087124,1759576242507,-500.0,0.00020699,2]
[389087126,1759576242516,-500.0,0.00020699,2]
[389087128,1759576242525,-500.0,0.00020699,2]
[389087130,1759576242534,-500.0,0.00020699,2]
[389087132,1759576242543,-500.0,0.00020699,2]
[389087134,1759576242553,-500.0,0.00020699,2]
[389087136,1759576242562,-394.9443272,0.00020699,2]
[389087138,1759576242571,-687.76,0.00020699,2]
[389087140,1759576242580,-500.0,0.00020699,2]
[389087142,1759576242589,-500.0,0.00020699,2]
[389087144,1759576242598,-500.0,0.00020699,2]
[389087146,1759576242607,-500.0,0.00020699,2]
[389087148,1759576242616,-500.0,0.00020699,2]
[389087150,1759576242625,-500.0,0.00020699,2]
[389087152,1759576242634,-563.8,0.00020699,2]
[389087154,1759576242643,-500.0,0.00020699,2]
[389087156,1759576242652,-500.0,0.00020699,2]
[389087158,1759576242665,-165.55,0.00020699,2]
[389087160,1759576242675,-571.64,0.00020699,2]
[389087162,1759576242684,-500.0,0.00020699,2]
[389087164,1759576242693,-500.0,0.00020699,2]
[389087166,1759576242702,-512.77,0.00020699,2]
[389087168,1759576242711,-1020.93,0.00020699,2]
[389087170,1759576242721,-500.0,0.00020699,2]
[389087172,1759576242731,-500.0,0.00020699,2]
[389087174,1759576242740,-631.37,0.00020699,2]
[389087176,1759576242749,-1472.83,0.00020699,2]
[389087178,1759576242758,-500.0,0.00020699,2]
[389087180,1759576242767,-500.0,0.00020699,2]
[389087182,1759576242778,-500.0,0.00020699,2]
[389087184,1759576242787,-1426.69,0.00020699,2]
[389087186,1759576242796,-500.0,0.00020699,2]
[389087188,1759576242806,-500.0,0.00020699,2]
[389087189,1759576242815,-1804.21,0.00020699,2]
[389087191,1759576242825,-500.0,0.00020699,2]
[389087193,1759576242834,-500.0,0.00020699,2]
[389087195,1759576242843,-500.0,0.00020699,2]
[389087197,1759576242852,-500.0,0.00020699,2]
[389087200,1759576242861,-635.28,0.00020699,2]
[389087202,1759576242871,-909.62,0.00020699,2]
[389087205,1759576242880,-1040.33,0.00020699,2]
[389087208,1759576242889,-1103.91,0.00020699,2]
[389087210,1759576242898,-500.0,0.00020699,2]
[389087213,1759576242908,-873.64,0.00020699,2]
[389087214,1759576242917,-500.0,0.00020699,2]
[389087216,1759576242926,-531.4,0.00020699,2]
[389087218,1759576242935,-875.98,0.00020699,2]
[389087220,1759576242944,-500.0,0.00020699,2]
[389087222,1759576242953,-1246.27,0.00020699,2]
[389087224,1759576242962,-500.0,0.00020699,2]
[389087226,1759576242971,-428.21618788,0.00020699,2]
[389087228,1759576242980,-466.96776007,0.00020699,2]
[389087230,1759576242988,-500.0,0.00020699,2]
[389087232,1759576242997,-500.0,0.00020699,2]
[389087234,1759576243007,-500.0,0.00020699,2]
[389087236,1759576243016,-500.0,0.00020699,2]
[389087238,1759576243025,-1000.75,0.00020699,2]
[389087240,1759576243035,-500.0,0.00020699,2]
[389087242,1759576243044,-878.89,0.00020699,2]
[389087244,1759576243054,-874.85,0.00020699,2]
[389087246,1759576243063,-517.54,0.00020699,2]
[389087248,1759576243072,-988.51,0.00020699,2]
[389087250,1759576243082,-500.0,0.00020699,2]
[389087252,1759576243091,-500.0,0.00020699,2]
[389087254,1759576243099,-500.0,0.00020699,2]
[389087256,1759576243109,-500.0,0.00020699,2]
[389087258,1759576243118,-500.0,0.00020699,2]
[389087260,1759576243127,-500.0,0.00020699,2]
[389087262,1759576243136,-1140.12,0.00020699,2]
[389087264,1759576243145,-500.0,0.00020699,2]
[389087266,1759576243155,-6160.39,0.00020699,2]
[389087268,1759576243164,-500.0,0.00020699,2]
[389087270,1759576243173,-500.0,0.00020699,2]
[389087272,1759576243183,-500.0,0.00020699,2]
[389087274,1759576243192,-613.85,0.00020699,2]
[389087276,1759576243201,-500.0,0.00020699,2]
[389087278,1759576243210,-500.0,0.00020699,2]
[389087280,1759576243220,-3565.85,0.00020699,2]
[389087282,1759576243228,-500.0,0.00020699,2]
[389087284,1759576243237,-500.0,0.00020699,2]
[389087286,1759576243247,-500.0,0.00020699,2]
[389087288,1759576243255,-500.0,0.00020699,2]
[389087290,1759576243265,-500.0,0.00020699,2]
[389087292,1759576243274,-1280.14,0.00020699,2]
[389087294,1759576243283,-500.0,0.00020699,2]
[389087296,1759576243292,-917.48,0.00020699,2]
[389087298,1759576243300,-500.0,0.00020699,2]
[389087300,1759576243309,-673.71,0.00020699,2]
[389087302,1759576243319,-500.0,0.00020699,2]
[389087304,1759576243328,-500.0,0.00020699,2]
[389087306,1759576243337,-500.0,0.00020699,2]
[389087308,1759576243346,-500.0,0.00020699,2]
[389087310,1759576243355,-307.15421767,0.00020699,2]
[389087312,1759576243365,-1088.54,0.00020699,2]
[389087314,1759576243374,-500.0,0.00020699,2]
[389087316,1759576243383,-500.0,0.00020699,2]
[389087318,1759576243392,-3719.55,0.00020699,2]
[389087320,1759576243401,-500.0,0.00020699,2]
[389087322,1759576243410,-500.0,0.00020699,2]
[389087324,1759576243419,-500.0,0.00020699,2]
[389087326,1759576243428,-500.0,0.00020699,2]
[389087328,1759576243437,-500.0,0.00020699,2]
[389087330,1759576243446,-273.44983229,0.00020699,2]
[389087332,1759576243455,-500.0,0.00020699,2]
[389087334,1759576243464,-500.0,0.00020699,2]
[389087336,1759576243474,-990.43,0.00020699,2]
[389087338,1759576243484,-500.0,0.00020699,2]
[389087340,1759576243493,-500.0,0.00020699,2]
[389087342,1759576243502,-2347.6,0.00020699,2]
[389087344,1759576243511,-500.0,0.00020699,2]
[389087346,1759576243520,-500.0,0.00020699,2]
[389087348,1759576243529,-500.0,0.00020699,2]
[389087349,1759576243537,-808.01,0.00020699,2]
[389087350,1759576243546,-500.0,0.00020699,2]
[389087351,1759576243555,-500.0,0.00020699,2]
[389087352,1759576243563,-500.0,0.00020699,2]
[389087353,1759576243573,-500.0,0.00020699,2]
[389087354,1759576243582,-587.53,0.00020699,2]
[389087355,1759576243591,-500.0,0.00020699,2]
[389087356,1759576243600,-500.0,0.00020699,2]
[389087357,1759576243608,-500.0,0.00020699,2]
[389087359,1759576243617,-1246.24,0.00020699,2]
[389087361,1759576243627,-959.14,0.00020699,2]
[389087363,1759576243636,-500.0,0.00020699,2]
[389087365,1759576243644,-500.0,0.00020699,2]
[389087367,1759576243653,-500.0,0.00020699,2]
[389087369,1759576243666,-4205.49,0.00020699,2]
[389087371,1759576243675,-500.0,0.00020699,2]
[389087373,1759576243684,-500.0,0.00020699,2]
[389087375,1759576243693,-500.0,0.00020699,2]
[389087377,1759576243703,-500.0,0.00020699,2]
[389087379,1759576243712,-1811.46,0.00020699,2]
[389087381,1759576243721,-398.37352739,0.00020699,2]
[389087383,1759576243731,-500.0,0.00020699,2]
[389087385,1759576243742,-500.0,0.00020699,2]
[389087387,1759576243751,-163.0,0.00020699,2]
[389087389,1759576243761,-1703.75,0.00020699,2]
[389087391,1759576243770,-166.66,0.00020699,2]
[389087393,1759576243780,-725.38,0.00020699,2]
[389087395,1759576243790,-972.96,0.00020699,2]
[389087397,1759576243799,-2000.0,0.000207,2]
[389087419,1759576243982,-2000.0,0.000207,2]
[389087421,1759576243991,-1468.263,0.000207,2]
[389087423,1759576244002,-1500.0,0.00020756,2]
[389087425,1759576244011,-1500.0,0.00020756,2]
[389087427,1759576244020,-1500.0,0.00020756,2]
[389087429,1759576244029,-500.0,0.00020758,2]
[389087431,1759576244038,-500.0,0.00020758,2]
[389087433,1759576244048,-500.0,0.00020758,2]
[389087435,1759576244057,-507.95390373,0.00020758,2]
[389087437,1759576244066,-500.0,0.00020758,2]
[389087439,1759576244076,-500.0,0.00020758,2]
[389087441,1759576244086,-500.0,0.00020758,2]
[389087443,1759576244095,-500.0,0.00020758,2]
[389087445,1759576244104,-500.0,0.00020758,2]
[389087447,1759576244114,-500.0,0.00020758,2]
[389087449,1759576244123,-500.0,0.00020759,2]
[389087451,1759576244132,-1153.18,0.00020759,2]
[389087453,1759576244142,-500.0,0.00020759,2]
[389087455,1759576244151,-1122.43,0.00020759,2]
[389087458,1759576244160,-500.0,0.00020759,2]
[389087460,1759576244170,-3566.09,0.00020759,2]
[389087462,1759576244179,-2083.11,0.00020759,2]
[389087464,1759576244187,-500.0,0.00020759,2]
[389087466,1759576244196,-500.0,0.00020759,2]
[389087468,1759576244205,-1654.85,0.00020759,2]
[389087470,1759576244214,-534.47,0.00020759,2]
[389087472,1759576244223,-500.0,0.00020759,2]
[389087474,1759576244232,-500.0,0.00020759,2]
[389087476,1759576244241,-500.0,0.00020759,2]
[389087477,1759576244251,-414.29671918,0.00020759,2]
[389087479,1759576244262,-500.0,0.00020759,2]
[389087482,1759576244271,-500.0,0.00020759,2]
[389087484,1759576244280,-2982.3,0.00020759,2]
[389087486,1759576244289,-1247.46,0.00020759,2]
[389087488,1759576244298,-500.0,0.00020759,2]
[389087490,1759576244307,-595.42,0.00020759,2]
[389087491,1759576244316,-704.87,0.00020759,2]
[389087494,1759576244326,-500.0,0.00020759,2]
[389087496,1759576244335,-512.94,0.00020759,2]
[389087498,1759576244345,-753.02,0.00020759,2]
[389087500,1759576244354,-3475.66,0.00020759,2]
[389087502,1759576244363,-998.36,0.00020759,2]
[389087504,1759576244372,-819.72,0.00020759,2]
[389087506,1759576244382,-500.0,0.00020759,2]
[389087508,1759576244391,-500.0,0.00020759,2]
[389087510,1759576244401,-500.0,0.00020759,2]
[389087511,1759576244410,-500.0,0.00020759,2]
[389087513,1759576244419,-500.0,0.00020759,2]
[389087515,1759576244429,-500.0,0.00020759,2]
[389087518,1759576244438,-1016.02,0.00020759,2]
[389087520,1759576244448,-556.97,0.00020759,2]
[389087522,1759576244458,-2426.45,0.00020759,2]
[389087523,1759576244467,-500.0,0.00020759,2]
[389087525,1759576244476,-500.0,0.00020759,2]
[389087528,1759576244486,-500.0,0.00020759,2]
[389087530,1759576244495,-500.0,0.00020759,2]
[389087532,1759576244504,-500.0,0.00020759,2]
[389087534,1759576244513,-500.0,0.00020759,2]
[389087536,1759576244522,-608.41,0.00020759,2]
[389087538,1759576244532,-500.0,0.00020759,2]
[389087540,1759576244542,-500.0,0.00020759,2]
[389087542,1759576244551,-500.0,0.00020759,2]
[389087544,1759576244560,-500.0,0.00020759,2]
[389087546,1759576244570,-500.0,0.00020759,2]
[389087548,1759576244579,-500.0,0.00020759,2]
[389087550,1759576244589,-1013.56,0.00020759,2]
[389087552,1759576244597,-703.61,0.00020759,2]
[389087554,1759576244607,-3389.66,0.00020759,2]
[389087556,1759576244616,-500.0,0.00020759,2]
[389087558,1759576244625,-500.0,0.00020759,2]
[389087560,1759576244634,-708.12,0.00020759,2]
[389087562,1759576244643,-500.0,0.00020759,2]
[389087564,1759576244652,-638.57,0.00020759,2]
[389087566,1759576244665,-500.0,0.00020759,2]
[389087568,1759576244674,-500.0,0.00020759,2]
[389087570,1759576244685,-642.51,0.00020759,2]
[389087572,1759576244694,-699.23,0.00020759,2]
[389087574,1759576244703,-853.53,0.00020759,2]
[389087576,1759576244712,-892.32,0.00020759,2]
[389087578,1759576244721,-500.0,0.00020759,2]
[389087580,1759576244730,-1318.46,0.00020759,2]
[389087582,1759576244739,-500.0,0.00020759,2]
[389087584,1759576244748,-500.0,0.00020759,2]
[389087586,1759576244757,-521.25,0.00020759,2]
[389087588,1759576244768,-500.0,0.00020759,2]
[389087590,1759576244777,-500.0,0.00020759,2]
[389087592,1759576244787,-500.0,0.00020759,2]
[389087594,1759576244796,-500.0,0.00020759,2]
[389087596,1759576244805,-3035.79,0.00020759,2]
[389087598,1759576244815,-500.0,0.00020759,2]
[389087600,1759576244823,-151.0,0.00020759,2]
[389087602,1759576244832,-151.0,0.00020759,2]
[389087604,1759576244841,-151.0,0.00020759,2]
[389087606,1759576244850,-563.16,0.00020759,2]
[389087608,1759576244859,-501.27,0.00020759,2]
[389087610,1759576244868,-151.0,0.00020759,2]
[389087612,1759576244877,-500.0,0.00020766,2]
[389087614,1759576244887,-500.0,0.00020766,2]
[389087616,1759576244897,-155.42,0.00020767,2]
[389087619,1759576244906,-500.0,0.00020767,2]
[389087621,1759576244915,-546.70894974,0.00020767,2]
[389087623,1759576244924,-500.0,0.00020767,2]
[389087625,1759576244933,-500.0,0.00020767,2]
[389087627,1759576244944,-2059.7,0.00020767,2]
[389087629,1759576244952,-500.0,0.00020767,2]
[389087631,1759576244962,-500.0,0.00020767,2]
[389087633,1759576244971,-500.0,0.00020768,2]
[389087635,1759576244980,-1347.59,0.00020768,2]
[389087637,1759576244990,-500.0,0.00020768,2]
[389087639,1759576244998,-500.0,0.00020768,2]
[389087641,1759576245008,-500.0,0.00020768,2]
[389087643,1759576245018,-652.26,0.00020768,2]
[389087645,1759576245027,-500.0,0.00020768,2]
[389087647,1759576245037,-500.0,0.00020768,2]
[389087649,1759576245047,-472.34014194,0.00020768,2]
[389087651,1759576245056,-500.0,0.00020768,2]
[389087653,1759576245065,-500.0,0.00020768,2]
[389087655,1759576245075,-462.78830198,0.00020768,2]
[389087657,1759576245084,-500.0,0.00020768,2]
[389087659,1759576245093,-500.0,0.00020768,2]
[389087661,1759576245102,-500.0,0.00020768,2]
[389087663,1759576245111,-500.0,0.00020768,2]
[389087665,1759576245121,-500.0,0.00020768,2]
[389087667,1759576245130,-500.0,0.00020768,2]
[389087669,1759576245139,-500.0,0.00020768,2]
[389087671,1759576245148,-500.0,0.00020768,2]
[389087673,1759576245157,-500.0,0.00020768,2]
[389087676,1759576245167,-500.0,0.00020768,2]
[389087677,1759576245176,-541.7,0.00020768,2]
[389087680,1759576245186,-478.89301058,0.00020768,2]
[389087682,1759576245196,-551.43,0.00020768,2]
[389087683,1759576245206,-500.0,0.00020768,2]
[389087686,1759576245216,-500.0,0.00020768,2]
[389087688,1759576245225,-500.0,0.00020768,2]
[389087690,1759576245235,-615.51,0.00020768,2]
[389087692,1759576245244,-500.0,0.00020768,2]
[389087694,1759576245252,-642.12,0.00020768,2]
[389087696,1759576245261,-483.70147218,0.00020768,2]
[389087699,1759576245270,-500.0,0.00020768,2]
[389087701,1759576245279,-1432.88,0.00020768,2]
[389087703,1759576245288,-500.0,0.00020768,2]
[389087705,1759576245297,-500.0,0.00020768,2]
[389087708,1759576245307,-500.0,0.00020768,2]
[389087710,1759576245316,-500.0,0.00020768,2]
[389087712,1759576245326,-500.0,0.00020768,2]
[389087714,1759576245335,-500.0,0.00020768,2]
[389087716,1759576245344,-500.0,0.00020768,2]
[389087718,1759576245353,-285.86104925,0.00020768,2]
[389087720,1759576245362,-500.0,0.00020768,2]
[389087722,1759576245371,-528.46,0.00020768,2]
[389087724,1759576245380,-1864.59,0.00020768,2]
[389087726,1759576245389,-500.0,0.00020768,2]
[389087728,1759576245399,-500.0,0.00020768,2]
[389087730,1759576245407,-443.76001596,0.00020768,2]
[389087732,1759576245417,-500.0,0.00020768,2]
[389087734,1759576245426,-500.0,0.00020768,2]
[389087736,1759576245435,-500.0,0.00020768,2]
[389087738,1759576245444,-500.0,0.00020768,2]
[389087739,1759576245453,-500.0,0.00020768,2]
[389087742,1759576245463,-538.9,0.00020768,2]
[389087744,1759576245473,-500.0,0.00020768,2]
[389087746,1759576245482,-500.0,0.00020768,2]
[389087748,1759576245491,-989.1,0.00020768,2]
[389087750,1759576245500,-500.0,0.00020768,2]
[389087752,1759576245510,-500.0,0.00020768,2]
[389087754,1759576245519,-509.86,0.00020768,2]
[389087756,1759576245528,-500.0,0.00020768,2]
[389087758,1759576245538,-500.0,0.00020768,2]
[389087760,1759576245547,-500.0,0.00020768,2]
[389087762,1759576245556,-549.08,0.00020768,2]
[389087764,1759576245566,-561.5,0.00020768,2]
[389087766,1759576245575,-500.0,0.00020768,2]
[389087768,1759576245584,-500.0,0.00020768,2]
[389087770,1759576245594,-500.0,0.00020768,2]
[389087772,1759576245603,-1000.0,0.00020768,2]